Cogmind - Beta 14 *** ADVENTURER MODE // 2024.08.20 @ 18:22:57 Player: AppleSource Result: Destroyed by NI-OBO(R) with Subdweller Laser Performance ------------- Evolutions (0) 0 Regions Visited (3) 600 Robots Destroyed (47) 235 Value Destroyed (913) 913 Prototype IDs (11) 220 Alien Tech Used (0) 0 Bonus (81) 81 TOTAL SCORE: 2049 Bonus ------- Follower Combat Kills 81 Cogmind --------- Core Integrity 0/250 Matter 250/300 Energy 158/170 System Corruption 0% Temperature Cool (28) Movement Rolling (120) Ox1 Location -10/Subcaves Parts ------- > --- POWER (1) -------- Makeshift Power Source > --- PROPULSION (2) --- Subdweller Monowheel Subdweller Monowheel > --- UTILITY (2) ------ High-capacity Storage Unit Structural Scanner > --- WEAPON (2) ------- Enhanced Flamer Enhanced Flamer > --- INVENTORY (20) --- Ion Engine Light Angular Momentum Engine Sensor Array Signal Interpreter Terrain Scanner Targeting Computer Light Armor Plating Makeshift Light Armor Plating Rainbow Chip Autogun Autogun Subdweller Machine Gun Subdweller Machine Gun Barrage Gun Grenade Launcher Grenade Launcher Heavy Hammer Peak State ------------ > --- POWER ------------ Makeshift Power Source > --- PROPULSION ------- Subdweller Monowheel Subdweller Monowheel > --- UTILITY ---------- High-capacity Storage Unit Structural Scanner > --- WEAPON ----------- Enhanced Flamer Enhanced Flamer > --- INVENTORY -------- Ion Engine Light Angular Momentum Engine Sensor Array Signal Interpreter Terrain Scanner Targeting Computer Light Armor Plating Makeshift Light Armor Plating Rainbow Chip Autogun Autogun Subdweller Machine Gun Subdweller Machine Gun Barrage Gun Grenade Launcher Grenade Launcher Heavy Hammer [Rating: 20] Favorites ----------- Power Light Ion Engine Engine Light Ion Engine Power Core Light Nuclear Core Propulsion Light Treads Treads Light Treads Wheel Subdweller Monowheel Utility High-capacity Storage Unit Device Structural Scanner Storage High-capacity Storage Unit Processor Terrain Scan Processor Weapon Autogun Energy Gun Medium Laser Ballistic Gun Autogun Launcher Grenade Launcher Special Weapon Enhanced Flamer Impact Weapon Heavy Hammer Build | -11 -10 -10 -10 ------- Run | Yrd Mat Min Sub Slots Evolved . | . . . . Power . | . . . . Propulsion . | . . . . Utility . | . . . . Weapon . | . . . . Parts Attached 35 | 5 7 9 14 Power 5 | 1 . 3 1 Engine 3 | 1 . 1 1 Core 2 | . . 2 . Reactor . | . . . . Propulsion 8 | 2 1 2 3 Treads 6 | 2 1 2 1 Leg . | . . . . Wheel 2 | . . . 2 Hover . | . . . . Flight . | . . . . Utility 4 | . 4 . . Device 2 | . 2 . . Storage 1 | . 1 . . Processor 1 | . 1 . . Hackware . | . . . . Protection . | . . . . Artifact . | . . . . Weapon 18 | 2 2 4 10 Energy Gun 1 | 1 . . . Energy Cannon . | . . . . Ballistic Gun 10 | 1 2 2 5 Ballistic Cannon . | . . . . Launcher 2 | . . . 2 Special Weapon 2 | . . . 2 Impact Weapon 3 | . . 2 1 Slashing Weapon . | . . . . Piercing Weapon . | . . . . Special Melee Weapon . | . . . . Unidentified Prototypes . | . . . . Parts Lost 5 | . . 1 4 Power 1 | . . 1 . Propulsion 2 | . . . 2 Utility . | . . . . Weapon 2 | . . . 2 Highest Loss Streak 3 | . . 1 3 To Critical Strikes . | . . . . Average Slot Usage (%) 96 | . 96 99 89 Engine 8 | . 14 4 8 Core 5 | . . 9 5 Treads 26 | . 28 27 20 Device 12 | . 10 14 14 Storage 12 | . 11 14 14 Processor 1 | . 3 . . Ballistic Gun 24 | . 27 27 14 Impact Weapon 1 | . . . 4 Peak Build Rating 20 | 5 10 14 20 Average Rating 11 | 3 9 11 13 On Entrance 7 | . 5 10 13 Naked Turns . | . . . . Heaviest Build 52 | 6 50 52 52 Greatest Support 40 | 40 40 40 40 Greatest Overweight (x) 17 | . 1 17 2 Average Overweight (x) . | . . 1 1 Largest Inventory Capacity 20 | 5 20 20 20 Average Capacity 18 | 5 16 20 20 Most Carried 20 | . 10 15 20 Average Carried 10 | . 6 11 16 Final Capacity 20 | 5 20 20 20 Final Carried 17 | . 10 14 17 Class Distribution -------------------- 99% | Mutant Dominant Class ---------------- Mutant | -10/Materials Mutant | -10/Mines Mutant | -10/Subcaves Resources | -11 -10 -10 -10 ----------- Run | Yrd Mat Min Sub Matter Collected 1433 | 108 569 437 319 Remotely . | . . . . Salvage Created 1651 | . 842 730 79 Parts 96 | . 48 40 8 Haulers Intercepted . | . . . . Recyclers Shooed 3 | . 2 1 . Parts Field Recycled . | . . . . Retrieved Matter . | . . . . Parts Self-Destructed 9 | . . . 9 Prevented . | . . . . Kills | -11 -10 -10 -10 ------- Run | Yrd Mat Min Sub Combat Hostiles Destroyed 32 | . 9 19 4 Guns 30 | . 9 19 2 AOE 1 | . . . 1 Classes Destroyed 8 | . 7 . 1 Worker 2 | . 2 . . Builder 1 | . 1 . . Tunneler 2 | . 1 1 . Recycler 7 | . 6 1 . Watcher 3 | . 3 . . Swarmer 15 | . 6 7 2 Grunt 15 | . 3 12 . Subdweller 2 | . . . 2 Best Kill Streak 5 | . 5 4 2 Combat Bots Only 4 | . 3 4 2 Max Kills in Single Turn 2 | . 2 2 1 Gunslinging 1 | . . 1 . Exploded 1 | . . . 1 Melee . | . . . . Uniques/NPCs Destroyed . | . . . . Combat | -11 -10 -10 -10 -------- Run | Yrd Mat Min Sub Hostile Shots Fired 164 | . 48 57 59 Missed 49 | . 17 16 16 Damage Taken 1276 | . 199 340 737 Core 255 | . 13 21 221 Absorbed by Shields . | . . . . Ignored by Resistances 358 | . 65 110 183 Core Remaining (%) 100 | 100 . . . Volleys Fired 118 | . 48 42 28 Largest 2 | . 2 2 2 Hottest 160 | . 46 46 160 Shots Fired 233 | . 96 83 54 Gun 225 | . 96 83 46 Cannon . | . . . . Launcher 6 | . . . 6 Special 2 | . . . 2 Kinetic 225 | . 96 83 46 Thermal 2 | . . . 2 Explosive 6 | . . . 6 Electromagnetic . | . . . . Robot Hit Streak 47 | . 15 15 47 Robot Miss Streak 2 | . 2 1 2 Penetration Max . | . . . . Secondary Targets 3 | . . 3 . Max Gunslinging Chain 1 | . . 1 . Shots Hit Robots 178 | . 66 65 47 Core Hits 61 | . 27 30 4 Critical Kills . | . . . . Critical Parts Destroyed 1 | . . 1 . Critical Strikes 2 | . . 1 1 Burn 1 | . . . 1 Destroy 1 | . . 1 . Melee Attacks 15 | . . 10 5 Impact 15 | . . 10 5 Slashing . | . . . . Piercing . | . . . . Sneak Attacks . | . . . . Combat Hostiles . | . . . . Follow-up Attacks . | . . . . Damage Inflicted 2170 | . 937 1022 211 Guns 1965 | . 934 996 35 Cannons . | . . . . Explosions 153 | . . . 153 Melee . | . . . . Ramming 29 | . 3 26 . Kinetic 1965 | . 934 996 35 Thermal 23 | . . . 23 Explosive 153 | . . . 153 Electromagnetic . | . . . . Impact . | . . . . Slashing . | . . . . Piercing . | . . . . Highest Corruption . | . . . . Average Corruption . | . . . . Corruption Purged . | . . . . Corruption Blocked . | . . . . Overload Shots . | . . . . Overflow Damage . | . . . . Projectiles . | . . . . Explosions . | . . . . Melee . | . . . . Knockbacks . | . . . . Impact . | . . . . Kinetic . | . . . . Secondary . | . . . . Self-Inflicted Damage . | . . . . Shots . | . . . . Rammed 6 | . 1 5 . Targets Rammed 7 | . 1 6 . Kicked . | . . . . Crushed 1 | . . 1 . Highest Temperature 74 | . 15 74 22 Average Temperature 10 | . 6 14 19 Received Heat Transfer 477 | . 18 225 234 Siege Activations . | . . . . Robots Corrupted . | . . . . Combat Hostiles . | . . . . Parts Fried . | . . . . Impact Corruptions . | . . . . Robots Melted 1 | . . . 1 Combat Hostiles 1 | . . . 1 Parts Melted 2 | . . . 2 Heat Transferred 320 | . . . 320 Parts Sabotaged . | . . . . Parts Stolen . | . . . . Parts Stripped . | . . . . Power Chain Reactions . | . . . . Alert | -11 -10 -10 -10 ------- Run | Yrd Mat Min Sub Peak Influence 206 | . 132 206 . Initial 1 | . . 1 . Average 54 | . 34 72 . Maximum Alert Level 1 | . . 1 . Low Security (%) 97 | 100 100 94 . Level 1 2 | . . 5 . Level 2 . | . . . . Level 3 . | . . . . Level 4 . | . . . . Level 5 . | . . . . High Security . | . . . . Max Security . | . . . . Squads Dispatched . | . . . . Investigation . | . . . . Extermination . | . . . . Reinforcement . | . . . . Assault . | . . . . Garrison . | . . . . Intercept . | . . . . Searches Triggered . | . . . . Construction Impeded . | . . . . Haulers Reinforced . | . . . . Active Scanning Responses . | . . . . Cargo Convoy Interrupts . | . . . . Stealth | -11 -10 -10 -10 --------- Run | Yrd Mat Min Sub Distress Signals 4 | . 1 3 . Communications Jammed . | . . . . Distress Signals . | . . . . Times Spotted 45 | . 15 25 5 Peak Tracking Total 4 | . 4 3 2 Tactical Retreats 2 | . . 2 . Traps | -11 -10 -10 -10 ------- Run | Yrd Mat Min Sub Traps Triggered 3 | . 1 . 2 Indirectly . | . . . . Trap Hack Attempts . | . . . . Triggered . | . . . . Disarmed . | . . . . Reprogrammed . | . . . . Reused . | . . . . Traps Extracted . | . . . . Installed . | . . . . Triggered . | . . . . Machines | -11 -10 -10 -10 ---------- Run | Yrd Mat Min Sub Machines Disabled 2 | . 1 . 1 Max in Single Turn 1 | . 1 . 1 Machines Repaired . | . . . . Machines Dismantled . | . . . . Machines Sabotaged . | . . . . Overloaded Fab Kills . | . . . . Hacking | -11 -10 -10 -10 --------- Run | Yrd Mat Min Sub Machines Accessed 3 | . 2 . 1 Terminals 1 | . 1 . . Fabricators . | . . . . Repair Stations . | . . . . Recycling Units 1 | . 1 . . Scanalyzers . | . . . . Garrison Access . | . . . . Total Hacks 5 | . 4 . 1 Successful 3 | . 2 . 1 Failed 2 | . 2 . . Catastrophic . | . . . . Database Lockouts . | . . . . Manual 3 | . . . 3 Terminals 1 | . 1 . . Fabricators . | . . . . Repair Stations . | . . . . Recycling Units 3 | . 3 . . Scanalyzers . | . . . . Garrison Access . | . . . . Terminal Hacks 2 | . 1 . 1 Hauler Manifests 1 | . 1 . . Derelict Proto ID Bank 1 | . . . 1 Fabricator Hacks . | . . . . Repair Station Hacks . | . . . . Recycling Unit Hacks 1 | . 1 . . Retrieve Components 1 | . 1 . . Scanalyzer . | . . . . Garrison Access Hacks . | . . . . Unauthorized Hacks . | . . . . Terminals . | . . . . Fabricators . | . . . . Repair Stations . | . . . . Recycling Units . | . . . . Scanalyzers . | . . . . Garrison Access . | . . . . Data Cores Recovered . | . . . . Used . | . . . . Hacking Detections 1 | . 1 . . Full Trace Events 1 | . 1 . . Feedback Events . | . . . . Feedback Blocked . | . . . . Robot Schematics Acquired . | . . . . Robots Built . | . . . . Authchips . | . . . . Time . | . . . . Total Robot Build Rating . | . . . . Part Schematics Acquired . | . . . . Parts Built . | . . . . Authchips . | . . . . Time . | . . . . Total Part Build Rating . | . . . . Parts Repaired . | . . . . Time . | . . . . Parts Recycled . | . . . . Recycled Matter . | . . . . Retrieved Matter . | . . . . Retrieved Components 9 | . 9 . . Parts Scanalyzed . | . . . . Part Schematics Acquired . | . . . . Parts Damaged . | . . . . Bothacking | -11 -10 -10 -10 ------------ Run | Yrd Mat Min Sub Used RIF Installer . | . . . . Robots Hacked . | . . . . Non-combat . | . . . . Combat . | . . . . Robot Hacks Applied . | . . . . Relay Couplers Released . | . . . . Fabnet Peak Effective % . | . . . . Robots Rewired . | . . . . Allies Hacked . | . . . . Hacks Repelled . | . . . . Allies | -11 -10 -10 -10 -------- Run | Yrd Mat Min Sub Total Allies 3 | . . 3 . Largest Group 3 | . . 3 2 Highest-Rated Group 40 | . . 40 23 Highest-Rated Ally 16 | . . 16 15 Total Orders . | . . . . Ally Attacks 20 | . . 17 3 Total Damage 157 | . . 123 34 Kills 5 | . . 4 1 Allies Corrupted . | . . . . Allies Melted . | . . . . Intel | -11 -10 -10 -10 ------- Run | Yrd Mat Min Sub Robot Analysis Total . | . . . . Derelict Logs Recovered 3 | . . 2 1 Drone Launches . | . . . . Drone Recoveries . | . . . . Exploration | -11 -10 -10 -10 ------------- Run | Yrd Mat Min Sub Turns Passed 5330 | 84 1779 2384 1083 Spaces Moved 2075 | 51 734 875 415 Core 7 | 4 . 3 . Treads 1967 | 47 734 872 314 Legs . | . . . . Wheels 101 | . . . 101 Hover . | . . . . Flight . | . . . . Fastest Speed 50 | 50 160 240 120 Average Speed 228 | 151 218 242 227 Slowest Speed 900 | 160 240 900 320 Overloaded Moves . | . . . . Propulsion Burnouts . | . . . . Robots Hopped . | . . . . Cave-ins Triggered . | . . . . Exploration Rate (%) 49 | 3 81 100 14 Regions Visited 3 Branch Regions 2 Pre-discovered Areas 1 | . . . 1 Known Exits Taken . | . . . . Unknown Exits Taken 3 | 1 1 1 . Scrap Searched 10 | . . 1 9 Spaces Dug 2 | . . 2 . Terrain Destroyed 30 | . . 2 28 Melee 2 | . . 2 . Projectile . | . . . . AOE 28 | . . . 28 Terrain Rammed . | . . . . Walls Destroyed . | . . . . Machines Disabled . | . . . . Actions | -11 -10 -10 -10 --------- Run | Yrd Mat Min Sub Total 2440 | 55 834 1049 502 Wait 133 | . 25 92 16 Move 2072 | 50 733 874 415 Hop . | . . . . Pick Up 27 | . 13 5 9 Fast Attach 17 | 5 5 3 4 Attach 18 | . 2 6 10 Detach 20 | . 3 8 9 Swap . | . . . . Drop 13 | . 4 3 6 Fire 118 | . 48 42 28 Melee 15 | . . 10 5 Ram . | . . . . Kick . | . . . . Crush 7 | . 1 6 . Escape Stasis . | . . . . Rewire . | . . . . Trap . | . . . . Miscellaneous . | . . . . Route ------- -11/Scrapyard -10/Materials (discovered 5 exits: *Mat x3 / [*Min] / Sub) -10/Mines (discovered 3 exits: *Mat x2 / *Sub) -10/Subcaves (discovered 1 exit: [*Mat]) History --------- Turn | Location | Event 5 | -11/Scrapyard | Discovered new exit (range 15) 85 | -11/Scrapyard | Entered Materials 308 | -10/Materials | Build established: Mutant 564 | -10/Materials | Discovered new exit (range 10) 786 | -10/Materials | Discovered new exit (range 16) 904 | -10/Materials | Discovered new exit (range 15) 949 | -10/Materials | Discovered new exit (range 4) 1241 | -10/Materials | Discovered new exit (range 13) 1864 | -10/Materials | Entered Mines 1877 | -10/Mines | Met a Derelict bent on vengeance 1923 | -10/Mines | Excavation squad dispatched 1923 | -10/Mines | A large section of the Mines collapsed 2173 | -10/Mines | Excavation squad dispatched 2226 | -10/Mines | Learned Materials security intel 2423 | -10/Mines | Excavation squad dispatched 2613 | -10/Mines | Joined a pair of Derelicts in attacking an 0b10 outpost 2673 | -10/Mines | Excavation squad dispatched 2747 | -10/Mines | Identified exit to Materials 2900 | -10/Mines | Discovered new exit (range 11) 2933 | -10/Mines | Assisted by bots powering up and referring to "LRC-V3" 3535 | -10/Mines | Discovered exit to Materials (range 10) 4248 | -10/Mines | Entered Subcaves 4248 | -10/Subcaves | Accompanied by 3 allies 4287 | -10/Subcaves | Lost 3 allies 4309 | -10/Subcaves | A swath of the cavern ceiling suddenly collapsed 4525 | -10/Subcaves | Core integrity fell below 50% 4567 | -10/Subcaves | Lost 3 parts (1n2w) 4873 | -10/Subcaves | Discovered new exit (range 12) 4878 | -10/Subcaves | Learned location of Storage (-8) 4908 | -10/Subcaves | Core integrity fell below 20% 4939 | -10/Subcaves | Visited 4L-MR0's lab 4989 | -10/Subcaves | Found Rainbow Chip 5288 | -10/Subcaves | Shifting Twisted Machinery released Barrage Gun 5296 | -10/Subcaves | Shifting Twisted Machinery released Spk. Treads 5331 | -10/Subcaves | Destroyed by NI-OBO(R) with Subdweller Laser Last Messages --------------- Power Bank Rainbow Chip VL-GR5's Exoskeleton "Deathgrip" Powered Cannon Connecting with 4L-MR0's Prototype Logs... Testing Chamber breached. Acquired Rainbow Chip. Subatomizers dissect the Sub. Monowheel. Acquired Sub. Monowheel. Dropped Lgt. Treads. Acquired Sub. Monowheel. Subatomizers dissect the Riot Gun. Barrage Gun falls loose from the Twisted Machinery. Spk. Treads falls loose from the Twisted Machinery. Dropped Sml. Storage Unit. Dropped Mak. Spear. JG-PVR(R) suffers critical hit (Burn). JG-PVR(R) critical meltdown. Sub. Power Source melted. Sub. Optics melted. Map ----- +----------------------------------------------------+ | ??????????????### #######????????????????? | | ?????????????#### ###########???????????? | | ?????????????### ## ########??????????? | | ??############# ## ### ####?????????? | | ?############## #####???????? | | ?###""""" #### ### ???????? | | ?##" """" """### ## ???? | | ?##"" """ " ## #### ### ##???? | | ?##"" " "" ## ##### ####?### ???? | | ?####" #" # ###### ####???####??????? | | ??####+##### ## ##### ####?????????????? | | ??##" "### #" ##### ###?????????????? | | ??##" "### #### ##?????????????? | | ??## ""### ##?????????????? | | ??## X"### # ###?????????????? | | ??## ""#######" ####?????????????? | | ??## #""####### ##########??????????????? | | ??## #""##???### #########???????????????? | | ??########???### < ###????????????????????? | | ??########????## ##????????????????????? | | ??????????????### ##????????????????????? | | ??????????????### ###???????????????????? | | ???????????????## ###???????????????????? | | ???????????????### ##???????????????????? | | ???????????????## ##???????????????????? | | ???????????????## @ ##???????????????????? | | ???????????????## ###???????????????????? | | ???????????????### ##???????????????????? | | ?????????????#### ! ###???????????????????? | | ?????????????#####%R####??????????????????? | | ?????????????## ""###??????????????????? | | ?????????????## "" ###?????????????????? | | ?????????????## ""###?????????????????? | | ?????????????### "" ##?????????????????? | | ?????????????#### # "" ####???????????????? | | ?????????????#### ##""##### ??????????????? | | ?????????????####/ " """ ## ?????????????? | | ?????????????##"[! " """ ????????????? | | ?????????????###" " " ????????????? | | ?????????????#### """"" ##????????????? | | ??????????????#### = ###????????????? | | ???????????????### ###### ????????????? | | ???????????????? ###### ?????????????? | | ????????????????? #####?????????????????? | | ????????????????? ####???????????????????? | | ????????????????? ###????????????????????? | | ???????????????? ###?????????????????????? | | ???????????????# ###?????????????????????? | | ???????????????####???????????????????????? | | ???????????????####???????????????????????? | +----------------------------------------------------+ Best States ------------- Heat Dissipation 25 Energy Generation 15 Energy Capacity 170 Matter Stores 300 Matter Capacity 300 Sight Range 16 Terrain Scan Range 14 Terrain Scan Density 85 Resistance: KI 20 Resistance: TH 20 Resistance: EX 20 Resistance: EM 20 Resistance: I 20 Resistance: S 20 Resistance: P 20 Evasion (%) 40 Recoil Reduction 2 Offensive Hacking 10 Item Schematics ----------------- None Robot Schematics ------------------ None Fabricated ------------ Nothing Alien Tech Used ----------------- None Achievements -------------- None Challenges ------------ None Game ------ Seed AngularMakeshiftSegregator Manual? 0 Play Time 00:39:21 Cumulative 8.2 hours Start 2024.08.20 @ 17:32:08 End 2024.08.20 @ 18:22:57 Sessions 1 Manual Loads 0 Difficulty Adventurer Special Mode None Game No. 10 Rogue 0 Adventurer 10 Explorer 0 Win Type - Total 0 Types 0/0/0/0/0/0/0/0/0 Lore% 4 Gallery% 10 Achievement% 9 Wizard Run 0 Options --------- Layout 0 ASCII 0 Keyboard 1 Movement Numpad Keybinds 0 Fullscreen 2 Font 24/Smallcaps Map View 113x50 Zoom Use 0% Tactical HUD 0 Map Filters NONE Filters NONE Steam 1 RUN: 068d4d95-7f28-40a9-bc6a-203ec2bd70c2